[Event "Titled Tuesday Blitz March 22 Early 2022"]
[White "Voit, Daria"]
[Black "Dreev, Aleksey"]
[WhiteFideId "4182146"]
[BlackFideId "4100107"]
[WhiteElo "2323"]
[BlackElo "2625"]
[Result "1/2-1/2"]
[Round "02"]
[TimeControl "180+1"]
[Date "2022.03.22"]
[WhiteClock "0:00:16"]
[BlackClock "0:00:08"]

1. c4 {[%clk 0:03:00]}  c6 {[%clk 0:02:59]} 2. Nc3 {[%clk 0:02:55]}  d5 {[%clk 0:02:59]} 3. cxd5 {[%clk 0:02:53]}  cxd5 {[%clk 0:02:59]} 4. d4 {[%clk 0:02:54]}  Nf6 {[%clk 0:02:58]} 5. Bf4 {[%clk 0:02:52]}  Nc6 {[%clk 0:02:58]} 6. e3 {[%clk 0:02:52]}  e6 {[%clk 0:02:50]} 7. Bb5 {[%clk 0:02:52]}  Bd7 {[%clk 0:02:46]} 8. Nf3 {[%clk 0:02:50]}  Be7 {[%clk 0:02:46]} 9. O-O {[%clk 0:02:49]}  O-O {[%clk 0:02:45]} 10. Rc1 {[%clk 0:02:50]}  Nh5 {[%clk 0:02:42]} 11. Bg3 {[%clk 0:02:47]}  Nxg3 {[%clk 0:02:41]} 12. hxg3 {[%clk 0:02:48]}  Qa5 {[%clk 0:02:29]} 13. Qa4 {[%clk 0:02:44]}  Qxa4 {[%clk 0:01:59]} 14. Nxa4 {[%clk 0:02:39]}  a6 {[%clk 0:01:59]} 15. Bxc6 {[%clk 0:02:32]}  Bxc6 {[%clk 0:01:59]} 16. Nc5 {[%clk 0:02:26]}  Rfc8 {[%clk 0:01:57]} 17. Rc3 {[%clk 0:02:19]}  b6 {[%clk 0:01:28]} 18. Nd3 {[%clk 0:02:08]}  Bb7 {[%clk 0:01:21]} 19. Rfc1 {[%clk 0:02:07]}  Rxc3 {[%clk 0:01:21]} 20. Rxc3 {[%clk 0:02:08]}  Rc8 {[%clk 0:01:21]} 21. Rxc8+ {[%clk 0:02:07]}  Bxc8 {[%clk 0:01:21]} 22. Kf1 {[%clk 0:02:06]}  h5 {[%clk 0:01:17]} 23. Ke2 {[%clk 0:02:05]}  Bd7 {[%clk 0:01:11]} 24. Kd2 {[%clk 0:02:05]}  g5 {[%clk 0:00:58]} 25. Kc3 {[%clk 0:02:03]}  Kg7 {[%clk 0:00:55]} 26. Nfe5 {[%clk 0:02:01]}  Bb5 {[%clk 0:00:48]} 27. b3 {[%clk 0:02:01]}  f6 {[%clk 0:00:48]} 28. Nf3 {[%clk 0:01:59]}  a5 {[%clk 0:00:47]} 29. a4 {[%clk 0:01:58]}  Ba6 {[%clk 0:00:47]} 30. Nd2 {[%clk 0:01:58]}  Kg6 {[%clk 0:00:47]} 31. Nb1 {[%clk 0:01:52]}  Bd6 {[%clk 0:00:44]} 32. Kc2 {[%clk 0:01:47]}  Kf5 {[%clk 0:00:39]} 33. Nc3 {[%clk 0:01:45]}  h4 {[%clk 0:00:38]} 34. gxh4 {[%clk 0:01:44]}  gxh4 {[%clk 0:00:38]} 35. Nb5 {[%clk 0:01:43]}  Bb8 {[%clk 0:00:37]} 36. Kd2 {[%clk 0:01:41]}  Kg4 {[%clk 0:00:36]} 37. Ke2 {[%clk 0:01:41]}  Bc8 {[%clk 0:00:34]} 38. Ne1 {[%clk 0:01:34]}  e5 {[%clk 0:00:30]} 39. Nc3 {[%clk 0:01:28]}  Be6 {[%clk 0:00:30]} 40. Nf3 {[%clk 0:01:26]}  Bd6 {[%clk 0:00:29]} 41. Nb5 {[%clk 0:01:24]}  Bb8 {[%clk 0:00:28]} 42. Nc3 {[%clk 0:01:25]}  e4 {[%clk 0:00:22]} 43. Ne1 {[%clk 0:01:24]}  f5 {[%clk 0:00:20]} 44. Nc2 {[%clk 0:01:15]}  Bd6 {[%clk 0:00:20]} 45. Nb5 {[%clk 0:01:14]}  Bb8 {[%clk 0:00:20]} 46. Nc3 {[%clk 0:01:10]}  Bf7 {[%clk 0:00:20]} 47. Kf1 {[%clk 0:01:03]}  h3 {[%clk 0:00:18]} 48. gxh3+ {[%clk 0:01:03]}  Kxh3 {[%clk 0:00:18]} 49. Ke2 {[%clk 0:01:00]}  Kg4 {[%clk 0:00:18]} 50. Na3 {[%clk 0:00:58]}  f4 {[%clk 0:00:17]} 51. exf4 {[%clk 0:00:57]}  Kxf4 {[%clk 0:00:15]} 52. Nc2 {[%clk 0:00:57]}  Bh5+ {[%clk 0:00:10]} 53. Ke1 {[%clk 0:00:56]}  Kf3 {[%clk 0:00:10]} 54. Nxd5 {[%clk 0:00:52]}  Bf7 {[%clk 0:00:10]} 55. Nce3 {[%clk 0:00:51]}  Bd6 {[%clk 0:00:10]} 56. Nxb6 {[%clk 0:00:49]}  Bxb3 {[%clk 0:00:10]} 57. Kf1 {[%clk 0:00:45]}  Bf4 {[%clk 0:00:08]} 58. Nec4 {[%clk 0:00:43]}  e3 {[%clk 0:00:07]} 59. fxe3 {[%clk 0:00:36]}  Bxe3 {[%clk 0:00:08]} 60. d5 {[%clk 0:00:36]}  Bxb6 {[%clk 0:00:04]} 61. Nxb6 {[%clk 0:00:36]}  Ke4 {[%clk 0:00:05]} 62. d6 {[%clk 0:00:36]}  Be6 {[%clk 0:00:05]} 63. Ke2 {[%clk 0:00:27]}  Kd4 {[%clk 0:00:05]} 64. Kd2 {[%clk 0:00:17]}  Kc5 {[%clk 0:00:05]} 65. d7 {[%clk 0:00:17]}  Bxd7 {[%clk 0:00:05]} 66. Nxd7+ {[%clk 0:00:18]}  Kb4 {[%clk 0:00:06]} 67. Nb6 {[%clk 0:00:17]}  Kc5 {[%clk 0:00:06]} 68. Na8 {[%clk 0:00:12]}  Kb4 {[%clk 0:00:07]} 69. Nc7 {[%clk 0:00:11]}  Kxa4 {[%clk 0:00:06]} 70. Kc3 {[%clk 0:00:11]}  Ka3 {[%clk 0:00:07]} 71. Nd5 {[%clk 0:00:11]}  Ka2 {[%clk 0:00:07]} 72. Kc2 {[%clk 0:00:10]}  Ka3 {[%clk 0:00:07]} 73. Nc3 {[%clk 0:00:09]}  Kb4 {[%clk 0:00:07]} 74. Ne4 {[%clk 0:00:10]}  a4 {[%clk 0:00:07]} 75. Kb2 {[%clk 0:00:11]}  Kc4 {[%clk 0:00:07]} 76. Ka2 {[%clk 0:00:11]}  Kd4 {[%clk 0:00:07]} 77. Nd2 {[%clk 0:00:12]}  Kc3 {[%clk 0:00:08]} 78. Nb1+ {[%clk 0:00:13]}  Kb4 {[%clk 0:00:08]} 79. Na3 {[%clk 0:00:13]}  Kc3 {[%clk 0:00:07]} 80. Nb5+ {[%clk 0:00:13]}  Kb4 {[%clk 0:00:08]} 81. Nd6 {[%clk 0:00:14]}  Kc5 {[%clk 0:00:08]} 82. Ka3 {[%clk 0:00:15]}  Kxd6 {[%clk 0:00:08]} 83. Kxa4 {[%clk 0:00:16]} 1/2-1/2


[Site "https://www.chess.com"]

[Event "Titled Tuesday Blitz March 22 Early 2022"]
[White "Weetik, Vjacheslav"]
[Black "Koellner, Ruben Gideon"]
[WhiteFideId "4153472"]
[BlackFideId "12993093"]
[WhiteElo "2469"]
[BlackElo "2478"]
[Result "0-1"]
[Round "02"]
[TimeControl "180+1"]
[Date "2022.03.22"]
[WhiteClock "0:00:02"]
[BlackClock "0:00:22"]

1. e4 {[%clk 0:02:59]}  d6 {[%clk 0:02:59]} 2. d4 {[%clk 0:02:59]}  Nf6 {[%clk 0:02:59]} 3. Nc3 {[%clk 0:02:59]}  e5 {[%clk 0:03:00]} 4. Nf3 {[%clk 0:02:55]}  Nbd7 {[%clk 0:02:59]} 5. g4 {[%clk 0:02:55]}  d5 {[%clk 0:02:59]} 6. dxe5 {[%clk 0:02:32]}  Nxe4 {[%clk 0:02:55]} 7. Qxd5 {[%clk 0:02:22]}  Nxc3 {[%clk 0:02:54]} 8. bxc3 {[%clk 0:02:23]}  c6 {[%clk 0:02:55]} 9. Qd3 {[%clk 0:02:11]}  Qa5 {[%clk 0:02:50]} 10. e6 {[%clk 0:01:58]}  fxe6 {[%clk 0:02:48]} 11. Qe3 {[%clk 0:01:44]}  Nf6 {[%clk 0:02:45]} 12. Bd2 {[%clk 0:01:13]}  Nxg4 {[%clk 0:02:35]} 13. Qe2 {[%clk 0:01:11]}  Nf6 {[%clk 0:02:29]} 14. Bh3 {[%clk 0:01:04]}  Qd5 {[%clk 0:02:00]} 15. Rd1 {[%clk 0:00:46]}  Qe4 {[%clk 0:01:57]} 16. Be3 {[%clk 0:00:42]}  e5 {[%clk 0:01:42]} 17. Bg2 {[%clk 0:00:34]}  Bg4 {[%clk 0:01:40]} 18. h3 {[%clk 0:00:34]}  Bh5 {[%clk 0:01:40]} 19. O-O {[%clk 0:00:34]}  Bc5 {[%clk 0:01:31]} 20. Rfe1 {[%clk 0:00:18]}  Bxe3 {[%clk 0:01:30]} 21. Qxe3 {[%clk 0:00:19]}  Qxe3 {[%clk 0:01:30]} 22. Rxe3 {[%clk 0:00:20]}  e4 {[%clk 0:01:28]} 23. Rb1 {[%clk 0:00:18]}  O-O-O {[%clk 0:01:26]} 24. Ng5 {[%clk 0:00:18]}  Rhe8 {[%clk 0:01:22]} 25. Nxe4 {[%clk 0:00:17]}  Nxe4 {[%clk 0:01:18]} 26. Bxe4 {[%clk 0:00:18]}  g6 {[%clk 0:01:15]} 27. Rbe1 {[%clk 0:00:15]}  Kc7 {[%clk 0:01:15]} 28. Bd3 {[%clk 0:00:15]}  Rxe3 {[%clk 0:01:14]} 29. Rxe3 {[%clk 0:00:15]}  Rd7 {[%clk 0:01:14]} 30. Kh2 {[%clk 0:00:15]}  Rf7 {[%clk 0:01:11]} 31. Kg3 {[%clk 0:00:15]}  Kd6 {[%clk 0:01:10]} 32. f4 {[%clk 0:00:15]}  Re7 {[%clk 0:01:09]} 33. Kf2 {[%clk 0:00:12]}  Rxe3 {[%clk 0:01:07]} 34. Kxe3 {[%clk 0:00:13]}  h6 {[%clk 0:01:03]} 35. h4 {[%clk 0:00:13]}  c5 {[%clk 0:00:57]} 36. Be4 {[%clk 0:00:13]}  b6 {[%clk 0:00:57]} 37. a3 {[%clk 0:00:12]}  Ke6 {[%clk 0:00:57]} 38. Bd3 {[%clk 0:00:11]}  Kf6 {[%clk 0:00:51]} 39. Ke4 {[%clk 0:00:11]}  Ke6 {[%clk 0:00:49]} 40. Ke3 {[%clk 0:00:11]}  Kd5 {[%clk 0:00:33]} 41. Be4+ {[%clk 0:00:05]}  Kc4 {[%clk 0:00:24]} 42. Kd2 {[%clk 0:00:06]}  Kb5 {[%clk 0:00:25]} 43. Bd3+ {[%clk 0:00:06]}  Ka4 {[%clk 0:00:25]} 44. Ke3 {[%clk 0:00:01]}  Kxa3 {[%clk 0:00:25]} 45. Ke4 {[%clk 0:00:02]}  Kb2 {[%clk 0:00:23]} 46. c4 {[%clk 0:00:02]}  a5 {[%clk 0:00:22]} 47. Kd5 {[%clk 0:00:02]}  a4 {[%clk 0:00:22]} 0-1


[Site "https://www.chess.com"]

[Event "Titled Tuesday Blitz March 22 Early 2022"]
[White "Winkels, Marcel"]
[Black "Garv Gaur"]
[WhiteFideId "1003887"]
[BlackFideId "45030839"]
[WhiteElo "1900"]
[BlackElo "1950"]
[Result "1-0"]
[Round "02"]
[TimeControl "180+1"]
[Date "2022.03.22"]
[WhiteClock "0:00:45"]
[BlackClock "0:00:02"]

1. e4 {[%clk 0:03:00]}  c6 {[%clk 0:02:59]} 2. d4 {[%clk 0:02:59]}  d5 {[%clk 0:02:59]} 3. exd5 {[%clk 0:02:59]}  cxd5 {[%clk 0:02:59]} 4. c4 {[%clk 0:02:59]}  Nf6 {[%clk 0:02:59]} 5. Nc3 {[%clk 0:03:00]}  g6 {[%clk 0:02:59]} 6. cxd5 {[%clk 0:02:59]}  Bg7 {[%clk 0:02:59]} 7. Bb5+ {[%clk 0:02:59]}  Nbd7 {[%clk 0:02:57]} 8. d6 {[%clk 0:02:59]}  exd6 {[%clk 0:02:57]} 9. Qe2+ {[%clk 0:02:58]}  Qe7 {[%clk 0:02:56]} 10. Bf4 {[%clk 0:02:56]}  Qxe2+ {[%clk 0:02:50]} 11. Bxe2 {[%clk 0:02:54]}  d5 {[%clk 0:02:14]} 12. Bf3 {[%clk 0:02:51]}  Nb6 {[%clk 0:02:12]} 13. O-O-O {[%clk 0:02:48]}  O-O {[%clk 0:02:12]} 14. Nge2 {[%clk 0:02:47]}  Be6 {[%clk 0:02:10]} 15. Be5 {[%clk 0:02:44]}  Rac8 {[%clk 0:02:06]} 16. Kb1 {[%clk 0:02:42]}  Rfd8 {[%clk 0:02:00]} 17. Nf4 {[%clk 0:02:32]}  g5 {[%clk 0:01:44]} 18. Nxe6 {[%clk 0:02:20]}  fxe6 {[%clk 0:01:42]} 19. Rhe1 {[%clk 0:02:21]}  Rc6 {[%clk 0:01:37]} 20. h3 {[%clk 0:02:11]}  Nc4 {[%clk 0:01:34]} 21. Bxf6 {[%clk 0:02:04]}  Bxf6 {[%clk 0:01:33]} 22. Bg4 {[%clk 0:02:05]}  Kf7 {[%clk 0:01:28]} 23. g3 {[%clk 0:01:50]}  Rb6 {[%clk 0:01:26]} 24. b3 {[%clk 0:01:48]}  Rdd6 {[%clk 0:01:08]} 25. Na4 {[%clk 0:01:47]}  Rb4 {[%clk 0:01:05]} 26. Ka1 {[%clk 0:01:40]}  Na3 {[%clk 0:01:04]} 27. Kb2 {[%clk 0:01:39]}  Nb5 {[%clk 0:01:04]} 28. a3 {[%clk 0:01:29]}  Bxd4+ {[%clk 0:00:57]} 29. Ka2 {[%clk 0:01:24]}  Rxa4 {[%clk 0:00:56]} 30. bxa4 {[%clk 0:01:23]}  Nc3+ {[%clk 0:00:56]} 31. Kb3 {[%clk 0:01:19]}  Nxd1 {[%clk 0:00:57]} 32. Rxd1 {[%clk 0:01:18]}  Bb6 {[%clk 0:00:56]} 33. f4 {[%clk 0:01:14]}  gxf4 {[%clk 0:00:51]} 34. Rf1 {[%clk 0:01:11]}  e5 {[%clk 0:00:49]} 35. gxf4 {[%clk 0:01:10]}  e4 {[%clk 0:00:49]} 36. Bf5 {[%clk 0:01:02]}  h6 {[%clk 0:00:37]} 37. Rd1 {[%clk 0:01:00]}  Kf6 {[%clk 0:00:37]} 38. Bxe4 {[%clk 0:00:58]}  d4 {[%clk 0:00:37]} 39. Kc4 {[%clk 0:00:53]}  Re6 {[%clk 0:00:34]} 40. Bxb7 {[%clk 0:00:51]}  Re3 {[%clk 0:00:18]} 41. Rd3 {[%clk 0:00:50]}  Re2 {[%clk 0:00:07]} 42. a5 {[%clk 0:00:46]}  Rc2+ {[%clk 0:00:02]} 43. Kd5 {[%clk 0:00:45]} 1-0


[Site "https://www.chess.com"]

[Event "Titled Tuesday Blitz March 22 Early 2022"]
[White "Xu, Yi"]
[Black "Coto Mederos, Michel"]
[WhiteFideId "8605564"]
[BlackFideId "3508528"]
[WhiteElo "2471"]
[BlackElo "2427"]
[Result "1-0"]
[Round "02"]
[TimeControl "180+1"]
[Date "2022.03.22"]
[WhiteClock "0:00:05"]
[BlackClock "0:00:09"]

1. e4 {[%clk 0:03:00]}  g6 {[%clk 0:02:58]} 2. d4 {[%clk 0:03:00]}  Bg7 {[%clk 0:02:58]} 3. Nc3 {[%clk 0:03:00]}  c6 {[%clk 0:02:59]} 4. f4 {[%clk 0:02:57]}  d5 {[%clk 0:02:56]} 5. e5 {[%clk 0:02:57]}  h5 {[%clk 0:02:55]} 6. Nf3 {[%clk 0:02:51]}  Nh6 {[%clk 0:02:54]} 7. Bd3 {[%clk 0:02:48]}  Bg4 {[%clk 0:02:53]} 8. Be3 {[%clk 0:02:47]}  Nf5 {[%clk 0:02:48]} 9. Bf2 {[%clk 0:02:47]}  e6 {[%clk 0:02:48]} 10. h3 {[%clk 0:02:34]}  Bxf3 {[%clk 0:02:47]} 11. Qxf3 {[%clk 0:02:34]}  h4 {[%clk 0:02:45]} 12. O-O-O {[%clk 0:02:33]}  Nd7 {[%clk 0:02:43]} 13. Bxf5 {[%clk 0:02:24]}  exf5 {[%clk 0:02:42]} 14. Rhe1 {[%clk 0:02:20]}  Nf8 {[%clk 0:02:41]} 15. Na4 {[%clk 0:02:16]}  Ne6 {[%clk 0:02:40]} 16. Nc5 {[%clk 0:02:13]}  Qe7 {[%clk 0:02:21]} 17. Kb1 {[%clk 0:02:09]}  O-O-O {[%clk 0:02:10]} 18. Nxe6 {[%clk 0:02:05]}  fxe6 {[%clk 0:02:08]} 19. Rd3 {[%clk 0:02:00]}  g5 {[%clk 0:02:04]} 20. fxg5 {[%clk 0:01:55]}  Qxg5 {[%clk 0:02:04]} 21. Ra3 {[%clk 0:01:55]}  Kb8 {[%clk 0:01:59]} 22. Be3 {[%clk 0:01:50]}  Qe7 {[%clk 0:01:55]} 23. Bd2 {[%clk 0:01:45]}  Bh6 {[%clk 0:01:54]} 24. Ba5 {[%clk 0:01:43]}  Rdg8 {[%clk 0:01:50]} 25. Qf2 {[%clk 0:01:33]}  b6 {[%clk 0:01:48]} 26. Rb3 {[%clk 0:01:32]}  Ka8 {[%clk 0:01:47]} 27. Bb4 {[%clk 0:01:31]}  Qg7 {[%clk 0:01:46]} 28. Rg1 {[%clk 0:01:29]}  Rh7 {[%clk 0:01:38]} 29. Qf1 {[%clk 0:01:25]}  Qc7 {[%clk 0:01:33]} 30. Bd6 {[%clk 0:01:24]}  Qb7 {[%clk 0:01:30]} 31. Ra3 {[%clk 0:01:15]}  Rhg7 {[%clk 0:01:21]} 32. c4 {[%clk 0:01:13]}  Rg3 {[%clk 0:01:07]} 33. Rxg3 {[%clk 0:01:08]}  Rxg3 {[%clk 0:01:03]} 34. cxd5 {[%clk 0:01:08]}  cxd5 {[%clk 0:00:57]} 35. Qb5 {[%clk 0:01:07]}  Rg8 {[%clk 0:00:57]} 36. Re1 {[%clk 0:00:53]}  a6 {[%clk 0:00:52]} 37. Qa4 {[%clk 0:00:51]}  Rc8 {[%clk 0:00:44]} 38. a3 {[%clk 0:00:45]}  Bd2 {[%clk 0:00:42]} 39. Re2 {[%clk 0:00:41]}  Bg5 {[%clk 0:00:37]} 40. Rc2 {[%clk 0:00:40]}  b5 {[%clk 0:00:33]} 41. Qb3 {[%clk 0:00:36]}  Rc4 {[%clk 0:00:33]} 42. Qd3 {[%clk 0:00:29]}  Qc6 {[%clk 0:00:25]} 43. Bc5 {[%clk 0:00:29]}  Kb7 {[%clk 0:00:22]} 44. b3 {[%clk 0:00:28]}  Rxc2 {[%clk 0:00:22]} 45. Qxc2 {[%clk 0:00:29]}  Bd8 {[%clk 0:00:18]} 46. Qe2 {[%clk 0:00:28]}  Qe8 {[%clk 0:00:18]} 47. Ka2 {[%clk 0:00:24]}  Qg6 {[%clk 0:00:18]} 48. a4 {[%clk 0:00:24]}  bxa4 {[%clk 0:00:16]} 49. bxa4 {[%clk 0:00:24]}  Qe8 {[%clk 0:00:12]} 50. Qb2+ {[%clk 0:00:23]}  Ka8 {[%clk 0:00:12]} 51. Ka3 {[%clk 0:00:21]}  Be7 {[%clk 0:00:11]} 52. Qb6 {[%clk 0:00:20]}  Bxc5+ {[%clk 0:00:10]} 53. dxc5 {[%clk 0:00:20]}  Qc8 {[%clk 0:00:09]} 54. c6 {[%clk 0:00:19]}  Qf8+ {[%clk 0:00:09]} 55. Kb3 {[%clk 0:00:19]}  Qc8 {[%clk 0:00:10]} 56. Kc3 {[%clk 0:00:19]}  Qb8 {[%clk 0:00:03]} 57. Qxa6+ {[%clk 0:00:18]}  Qa7 {[%clk 0:00:04]} 58. Qc8+ {[%clk 0:00:15]}  Qb8 {[%clk 0:00:04]} 59. Qa6+ {[%clk 0:00:13]}  Qa7 {[%clk 0:00:04]} 60. Qxa7+ {[%clk 0:00:08]}  Kxa7 {[%clk 0:00:04]} 61. a5 {[%clk 0:00:09]}  Ka6 {[%clk 0:00:05]} 62. Kd4 {[%clk 0:00:09]}  Ka7 {[%clk 0:00:05]} 63. Kc5 {[%clk 0:00:09]}  Ka6 {[%clk 0:00:06]} 64. Kd6 {[%clk 0:00:08]}  d4 {[%clk 0:00:06]} 65. c7 {[%clk 0:00:08]}  Kxa5 {[%clk 0:00:06]} 66. c8=Q {[%clk 0:00:08]}  Kb5 {[%clk 0:00:07]} 67. Qb7+ {[%clk 0:00:05]}  Ka4 {[%clk 0:00:08]} 68. Kc5 {[%clk 0:00:05]}  Ka3 {[%clk 0:00:08]} 69. Kc4 {[%clk 0:00:05]}  Ka2 {[%clk 0:00:09]} 70. Qb3+ {[%clk 0:00:05]} 1-0


[Site "https://www.chess.com"]

[Event "Titled Tuesday Blitz March 22 Early 2022"]
[White "volunteers1998"]
[Black "Ferreira, Vitor Hugo Vieira"]
[BlackFideId "2119765"]
[WhiteElo "2236"]
[BlackElo "2165"]
[Result "1-0"]
[Round "02"]
[TimeControl "180+1"]
[Date "2022.03.22"]
[WhiteClock "0:01:11"]
[BlackClock "0:02:03"]

1. e4 {[%clk 0:02:58]}  c5 {[%clk 0:02:59]} 2. Nf3 {[%clk 0:02:57]}  d6 {[%clk 0:03:00]} 3. d4 {[%clk 0:02:54]}  cxd4 {[%clk 0:03:01]} 4. Nxd4 {[%clk 0:02:54]}  Nf6 {[%clk 0:03:01]} 5. Nc3 {[%clk 0:02:52]}  a6 {[%clk 0:03:02]} 6. h3 {[%clk 0:02:51]}  e5 {[%clk 0:03:01]} 7. Nde2 {[%clk 0:02:48]}  h5 {[%clk 0:03:00]} 8. g3 {[%clk 0:02:43]}  Be6 {[%clk 0:03:00]} 9. Bg2 {[%clk 0:02:41]}  Nbd7 {[%clk 0:03:00]} 10. Be3 {[%clk 0:02:36]}  Qc7 {[%clk 0:02:59]} 11. O-O {[%clk 0:02:31]}  Rc8 {[%clk 0:02:59]} 12. a4 {[%clk 0:02:27]}  Be7 {[%clk 0:02:59]} 13. Qd2 {[%clk 0:02:16]}  O-O {[%clk 0:02:56]} 14. Rad1 {[%clk 0:02:10]}  Nb6 {[%clk 0:02:55]} 15. b3 {[%clk 0:02:07]}  Rfd8 {[%clk 0:02:54]} 16. f4 {[%clk 0:01:59]}  exf4 {[%clk 0:02:48]} 17. gxf4 {[%clk 0:01:57]}  d5 {[%clk 0:02:47]} 18. e5 {[%clk 0:01:49]}  Ne4 {[%clk 0:02:46]} 19. Nxe4 {[%clk 0:01:47]}  dxe4 {[%clk 0:02:46]} 20. Nd4 {[%clk 0:01:45]}  Bd5 {[%clk 0:02:19]} 21. Qf2 {[%clk 0:01:38]}  Nd7 {[%clk 0:02:16]} 22. Nf5 {[%clk 0:01:32]}  Nf8 {[%clk 0:02:15]} 23. Bb6 {[%clk 0:01:27]}  Qxb6 {[%clk 0:02:05]} 24. Nxe7+ {[%clk 0:01:17]}  Kh7 {[%clk 0:02:03]} 25. Qxb6 {[%clk 0:01:11]} 1-0


[Site "https://www.chess.com"]

[Event "Titled Tuesday Blitz March 22 Early 2022"]
[White "Aravindh, Chithambaram VR."]
[Black "Yang, Kaiqi"]
[WhiteFideId "5072786"]
[BlackFideId "8604398"]
[WhiteElo "2561"]
[BlackElo "2373"]
[Result "1-0"]
[Round "03"]
[TimeControl "180+1"]
[Date "2022.03.22"]
[WhiteClock "0:00:17"]
[BlackClock "0:00:01"]

1. b3 {[%clk 0:03:00]}  e5 {[%clk 0:02:59]} 2. Bb2 {[%clk 0:02:59]}  Nc6 {[%clk 0:02:59]} 3. e3 {[%clk 0:03:00]}  Nf6 {[%clk 0:02:59]} 4. Bb5 {[%clk 0:03:00]}  Bd6 {[%clk 0:02:59]} 5. Na3 {[%clk 0:03:00]}  Be7 {[%clk 0:03:00]} 6. Nc4 {[%clk 0:02:58]}  d6 {[%clk 0:02:57]} 7. d4 {[%clk 0:02:56]}  exd4 {[%clk 0:02:53]} 8. Bxc6+ {[%clk 0:02:54]}  bxc6 {[%clk 0:02:53]} 9. Qxd4 {[%clk 0:02:54]}  O-O {[%clk 0:02:42]} 10. Ne2 {[%clk 0:02:49]}  c5 {[%clk 0:02:39]} 11. Qc3 {[%clk 0:02:49]}  Re8 {[%clk 0:02:29]} 12. O-O {[%clk 0:02:43]}  Bf8 {[%clk 0:02:29]} 13. Ng3 {[%clk 0:02:41]}  Ne4 {[%clk 0:02:13]} 14. Nxe4 {[%clk 0:02:40]}  Rxe4 {[%clk 0:02:14]} 15. Rad1 {[%clk 0:02:38]}  Qg5 {[%clk 0:02:02]} 16. f3 {[%clk 0:02:30]}  Re6 {[%clk 0:01:58]} 17. e4 {[%clk 0:02:12]}  Bb7 {[%clk 0:01:25]} 18. Qd2 {[%clk 0:02:04]}  Qxd2 {[%clk 0:01:22]} 19. Rxd2 {[%clk 0:02:05]}  Ba6 {[%clk 0:01:21]} 20. Bc3 {[%clk 0:02:02]}  Bxc4 {[%clk 0:01:20]} 21. bxc4 {[%clk 0:02:03]}  Rb8 {[%clk 0:01:20]} 22. Rdd1 {[%clk 0:01:57]}  Rb6 {[%clk 0:01:06]} 23. Rb1 {[%clk 0:01:52]}  Re8 {[%clk 0:00:54]} 24. Ba5 {[%clk 0:01:51]}  Ra6 {[%clk 0:00:53]} 25. Bxc7 {[%clk 0:01:50]}  Rxa2 {[%clk 0:00:53]} 26. Rf2 {[%clk 0:01:40]}  Rc8 {[%clk 0:00:48]} 27. Bb8 {[%clk 0:01:34]}  Be7 {[%clk 0:00:33]} 28. g3 {[%clk 0:01:23]}  Kf8 {[%clk 0:00:23]} 29. Rd2 {[%clk 0:01:19]}  Ra6 {[%clk 0:00:22]} 30. Rb7 {[%clk 0:01:04]}  Rb6 {[%clk 0:00:21]} 31. Rxb6 {[%clk 0:01:01]}  axb6 {[%clk 0:00:22]} 32. Bxd6 {[%clk 0:01:01]}  Ra8 {[%clk 0:00:08]} 33. Bc7 {[%clk 0:00:53]}  Ra6 {[%clk 0:00:05]} 34. Kf2 {[%clk 0:00:49]}  Ke8 {[%clk 0:00:06]} 35. Ke2 {[%clk 0:00:47]}  Bg5 {[%clk 0:00:05]} 36. f4 {[%clk 0:00:47]}  Bf6 {[%clk 0:00:04]} 37. e5 {[%clk 0:00:47]}  Be7 {[%clk 0:00:05]} 38. Ke3 {[%clk 0:00:46]}  Ra3+ {[%clk 0:00:03]} 39. Ke4 {[%clk 0:00:46]}  Ra6 {[%clk 0:00:03]} 40. Rd1 {[%clk 0:00:35]}  g6 {[%clk 0:00:02]} 41. g4 {[%clk 0:00:25]}  h6 {[%clk 0:00:01]} 42. f5 {[%clk 0:00:25]}  gxf5+ {[%clk 0:00:01]} 43. gxf5 {[%clk 0:00:26]}  Ra4 {[%clk 0:00:01]} 44. Kd5 {[%clk 0:00:18]}  Ra7 {[%clk 0:00:01]} 45. Kc6 {[%clk 0:00:17]} 1-0


[Site "https://www.chess.com"]

[Event "Titled Tuesday Blitz March 22 Early 2022"]
[White "Artemenko, Oleg"]
[Black "Rosenberg, Evan S"]
[WhiteFideId "14201798"]
[BlackFideId "2019299"]
[WhiteElo "2287"]
[BlackElo "2295"]
[Result "1-0"]
[Round "03"]
[TimeControl "180+1"]
[Date "2022.03.22"]
[WhiteClock "0:02:03"]
[BlackClock "0:00:01"]

1. d4 {[%clk 0:03:00]}  Nf6 {[%clk 0:02:59]} 2. Nc3 {[%clk 0:03:01]}  d5 {[%clk 0:02:58]} 3. Bf4 {[%clk 0:03:01]}  a6 {[%clk 0:02:57]} 4. e3 {[%clk 0:03:00]}  Bf5 {[%clk 0:02:56]} 5. f3 {[%clk 0:03:00]}  e6 {[%clk 0:02:54]} 6. g4 {[%clk 0:03:00]}  Bg6 {[%clk 0:02:55]} 7. h4 {[%clk 0:03:01]}  h5 {[%clk 0:02:55]} 8. g5 {[%clk 0:03:01]}  Nfd7 {[%clk 0:02:56]} 9. Bd3 {[%clk 0:03:02]}  Bxd3 {[%clk 0:02:54]} 10. Qxd3 {[%clk 0:03:03]}  c5 {[%clk 0:02:55]} 11. O-O-O {[%clk 0:03:03]}  Nc6 {[%clk 0:02:51]} 12. Nge2 {[%clk 0:03:03]}  Nb6 {[%clk 0:02:34]} 13. g6 {[%clk 0:02:59]}  f6 {[%clk 0:02:34]} 14. e4 {[%clk 0:02:59]}  Nb4 {[%clk 0:02:29]} 15. Qe3 {[%clk 0:02:59]}  Nc4 {[%clk 0:02:29]} 16. Qf2 {[%clk 0:02:58]}  e5 {[%clk 0:01:45]} 17. dxe5 {[%clk 0:02:56]}  d4 {[%clk 0:01:45]} 18. exf6 {[%clk 0:02:53]}  Qxf6 {[%clk 0:01:36]} 19. Bg5 {[%clk 0:02:53]}  Qb6 {[%clk 0:01:19]} 20. b3 {[%clk 0:02:21]}  dxc3 {[%clk 0:01:07]} 21. Nxc3 {[%clk 0:02:22]}  Na3 {[%clk 0:00:31]} 22. Qg3 {[%clk 0:02:12]}  Be7 {[%clk 0:00:07]} 23. Qe5 {[%clk 0:02:08]}  Nc6 {[%clk 0:00:04]} 24. Qxg7 {[%clk 0:02:08]}  Rf8 {[%clk 0:00:04]} 25. Nd5 {[%clk 0:02:03]}  Bxg5+ {[%clk 0:00:04]} 26. hxg5 {[%clk 0:02:04]}  Qd8 {[%clk 0:00:03]} 27. Nf6+ {[%clk 0:02:03]}  Rxf6 {[%clk 0:00:03]} 28. gxf6 {[%clk 0:02:04]}  Qxd1+ {[%clk 0:00:01]} 29. Rxd1 {[%clk 0:02:03]} 1-0


[Site "https://www.chess.com"]

[Event "Titled Tuesday Blitz March 22 Early 2022"]
[White "Avazkhonov, Alikhon"]
[Black "Mangialardo, Tiago Carvalho"]
[WhiteFideId "14208504"]
[BlackFideId "2130718"]
[WhiteElo "1739"]
[BlackElo "2085"]
[Result "1-0"]
[Round "03"]
[TimeControl "180+1"]
[Date "2022.03.22"]
[WhiteClock "0:00:27"]
[BlackClock "0:00:41"]

1. e4 {[%clk 0:03:00]}  e5 {[%clk 0:02:59]} 2. Nf3 {[%clk 0:03:00]}  Nc6 {[%clk 0:02:59]} 3. Bb5 {[%clk 0:03:00]}  a6 {[%clk 0:02:58]} 4. Ba4 {[%clk 0:03:01]}  Nf6 {[%clk 0:02:59]} 5. O-O {[%clk 0:03:01]}  Be7 {[%clk 0:02:59]} 6. Re1 {[%clk 0:03:01]}  d6 {[%clk 0:02:59]} 7. c3 {[%clk 0:02:54]}  O-O {[%clk 0:02:58]} 8. d4 {[%clk 0:02:53]}  exd4 {[%clk 0:02:59]} 9. cxd4 {[%clk 0:02:54]}  Bg4 {[%clk 0:02:52]} 10. Nc3 {[%clk 0:02:48]}  b5 {[%clk 0:02:42]} 11. Bb3 {[%clk 0:02:38]}  Na5 {[%clk 0:02:38]} 12. Bc2 {[%clk 0:02:37]}  Nc4 {[%clk 0:02:30]} 13. b3 {[%clk 0:02:34]}  Nb6 {[%clk 0:02:24]} 14. Qd3 {[%clk 0:02:32]}  Bh5 {[%clk 0:01:57]} 15. Bg5 {[%clk 0:01:52]}  Bg6 {[%clk 0:01:55]} 16. Nh4 {[%clk 0:01:46]}  Re8 {[%clk 0:01:48]} 17. Nxg6 {[%clk 0:01:43]}  hxg6 {[%clk 0:01:47]} 18. Rad1 {[%clk 0:01:42]}  Qc8 {[%clk 0:01:44]} 19. e5 {[%clk 0:01:37]}  Nfd5 {[%clk 0:01:38]} 20. Bxe7 {[%clk 0:00:51]}  Rxe7 {[%clk 0:01:35]} 21. Nxd5 {[%clk 0:00:39]}  Nxd5 {[%clk 0:01:31]} 22. Qf3 {[%clk 0:00:37]}  Nb4 {[%clk 0:01:08]} 23. exd6 {[%clk 0:00:30]}  Rxe1+ {[%clk 0:01:06]} 24. Rxe1 {[%clk 0:00:31]}  Nxc2 {[%clk 0:00:50]} 25. d7 {[%clk 0:00:30]}  Qf8 {[%clk 0:00:41]} 26. Qxa8 {[%clk 0:00:27]} 1-0


[Site "https://www.chess.com"]